bitfinex/quotes_ETHUSD_20250126
["timestamp","ask_amount","ask_price","bid_price","bid_amount"]
[1737927077156,0.7632,3316.8,3316.1,3.01553]
[1737927077372,3.01513,3316.6,3316.1,3.01553]
[1737927077878,3.01513,3316.6,3315.9,3.49219]
[1737927078171,3.01489,3316.9,3316.0,0.4765]
[1737927078469,10.94908641,3318.0,3316.6,3.49155]
[1737927078470,3.78125,3317.4,3316.6,3.49155]
[1737927078667,3.78125,3317.4,3316.7,3.01503]
[1737927078874,3.01451,3317.3,3316.7,3.01503]
[1737927079372,3.01451,3317.3,3316.6,3.49155]
[1737927079373,3.01436,3317.5,3316.9,3.01486]
[1737927079965,3.01441,3317.4,3316.7,3.01498]
[1737927080165,3.04462799,3317.4,3316.7,3.64631726]
[1737927081045,3.01451,3317.3,3316.6,0.4765]
[1737927081263,3.0146,3317.2,3316.6,3.49163]
[1737927084599,3.8224,3317.2,3316.6,0.4765]
[1737927085474,3.01478,3317.0,3316.6,0.4765]
[1737927089469,3.8224,3317.2,3316.6,0.4765]
[1737927089996,3.0146,3317.2,3316.6,0.4765]
[1737927090195,3.0146,3317.2,3316.7,0.34917]
[1737927090703,3.01442,3317.4,3316.7,0.34917]
[1737927090879,3.01442,3317.4,3316.8,3.49142]
[1737927092069,3.01424,3317.6,3316.8,3.49142]
[1737927092406,3.01424,3317.6,3317.0,3.01475]
[1737927092701,3.01424,3317.6,3317.0,3.64621826]
[1737927093492,0.03021799,3317.5,3317.0,0.63146826]
[1737927093694,0.03021799,3317.5,3316.8,3.49142]
[1737927093968,3.01443,3317.4,3316.8,3.49142]
[1737927095823,3.01424,3317.6,3316.9,3.0148]
[1737927095974,3.01424,3317.6,3317.0,3.01476]
[1737927096171,3.01408,3317.8,3317.1,0.4765]
[1737927096525,3.01408,3317.8,3317.2,0.349126]
[1737927096825,3.01408,3317.8,3317.2,3.363686]
[1737927097723,3.01414,3317.7,3317.2,3.363686]
[1737927102515,3.01404,3317.8,3317.3,3.49098]
[1737927102686,3.01404,3317.8,3317.3,0.4765]
[1737927103075,3.01404,3317.8,3317.4,0.3840176]
[1737927103614,3.01388,3318.0,3317.4,0.3840176]
[1737927103782,3.01397,3317.9,3317.5,0.4765]
[1737927104318,3.01388,3318.0,3317.5,0.4765]
[1737927104482,3.01395,3317.9,3317.5,0.4765]
[1737927104682,3.01395,3317.9,3317.6,0.38749176]
[1737927106109,3.01395,3317.9,3317.5,0.4765]
[1737927111630,6.02762,3318.1,3317.5,0.4765]
[1737927111827,3.01378,3318.1,3317.5,0.4765]
[1737927112032,3.01389,3318.0,3317.5,0.4765]
[1737927113037,3.01395,3317.9,3317.5,0.4765]
[1737927113331,3.01395,3317.9,3317.6,0.34909]
[1737927113724,0.03021799,3318.4,3317.5,0.4765]
[1737927113906,3.014,3317.9,3317.5,0.4765]
[1737927121725,3.01386,3318.0,3317.5,0.4765]
[1737927122159,3.0138,3318.1,3317.5,0.4765]
[1737927122950,3.01386,3318.0,3317.5,0.4765]
[1737927123129,3.01386,3318.0,3317.5,0.825582]
[1737927125677,3.01386,3318.0,3317.5,3.839882]
[1737927127376,3.01362,3318.3,3317.5,3.839882]
[1737927127579,3.01375,3318.2,3317.5,3.839882]
[1737927127726,3.01362,3318.3,3317.5,3.839882]
[1737927127926,3.01377,3318.1,3317.5,3.839882]
[1737927129840,3.01362,3318.3,3317.6,0.63155626]
[1737927130047,3.01362,3318.3,3317.7,3.49063]
[1737927130266,0.7508,3318.5,3317.8,3.01396]
[1737927130570,3.78298,3318.7,3318.0,3.01381]
[1737927130878,3.78298,3318.7,3318.1,0.4765]
[1737927131179,3.01322,3318.8,3318.1,0.825531]
[1737927131328,3.01322,3318.8,3318.2,3.01367]
[1737927133091,3.01322,3318.8,3318.1,0.825531]
[1737927133092,3.78266,3319.0,3318.3,3.49006]
[1737927133296,3.01315,3318.8,3318.3,3.49006]
[1737927134675,3.01306,3318.9,3318.3,3.49006]
[1737927134876,3.01306,3318.9,3318.4,0.349006]
[1737927135652,3.01296,3319.0,3318.4,3.362496]
[1737927135905,3.01296,3319.0,3318.5,0.4765]
[1737927136962,3.01322,3318.8,3318.4,0.349006]
[1737927137183,3.87218799,3318.7,3317.4,3.49085]
[1737927137380,3.01383,3318.1,3317.4,3.49085]
[1737927137568,3.01392,3318.0,3317.4,3.49085]
[1737927139406,3.01383,3318.1,3317.4,3.49085]
[1737927139615,3.01402,3317.9,3317.4,0.4765]
[1737927141206,3.01431,3317.5,3317.0,0.4765]
[1737927141363,3.01442,3317.4,3317.0,0.4765]
[1737927141563,3.01431,3317.5,3317.0,0.4765]
[1737927146696,0.8287,3317.6,3317.0,3.49124]
[1737927149538,0.8287,3317.6,3317.0,3.49127]
[1737927149539,3.84293,3317.6,3317.0,3.49127]
[1737927149700,3.01432,3317.5,3317.0,0.4765]
[1737927150100,3.01432,3317.5,3317.0,3.49127]
[1737927153635,3.01454,3317.3,3316.6,0.4765]
[1737927153838,3.01479,3317.0,3316.6,0.4765]
[1737927154013,3.80195,3317.1,3316.6,0.4765]
[1737927155094,3.01478,3317.0,3316.6,0.4765]
[1737927156603,3.80193,3317.1,3316.6,0.4765]
[1737927161958,3.83691,3317.3,3316.6,0.4765]
[1737927162263,3.01437,3317.5,3316.8,3.01486]
[1737927162558,3.01437,3317.5,3316.9,0.4765]
[1737927164453,3.01441,3317.4,3316.9,0.4765]
[1737927164955,3.01441,3317.4,3316.9,3.49133]
[1737927165661,3.01441,3317.4,3316.9,0.4765]
[1737927167280,3.01454,3317.3,3316.9,0.4765]
[1737927168670,3.01459,3317.2,3316.9,0.4765]
[1737927168877,3.01478,3317.0,3316.7,0.4765]
[1737927169179,3.01478,3317.0,3316.3,0.4765]
[1737927169180,3.01487,3316.9,3316.3,0.4765]
[1737927169463,3.01487,3316.9,3316.3,3.49189]
[1737927169669,3.01487,3316.9,3316.3,4.142634]
[1737927170469,3.80954,3317.1,3316.5,3.01522]
[1737927170630,3.01455,3317.3,3316.6,3.49158]
[1737927170835,3.01455,3317.3,3316.6,0.4765]
[1737927171169,3.01443,3317.4,3316.7,3.364172]
[1737927171336,3.0145,3317.3,3316.7,3.364172]
[1737927174970,3.01472,3317.1,3316.6,0.4765]
[1737927176075,3.0145,3317.3,3316.6,0.4765]
[1737927176233,3.0145,3317.3,3316.7,3.01498]
[1737927176433,3.0145,3317.3,3316.8,0.4765]
[1737927176629,0.7618,3317.7,3316.8,0.4765]
[1737927176934,3.01484,3317.0,3316.4,0.4765]
[1737927177439,3.01484,3317.0,3316.4,3.4918]
[1737927181270,3.77656,3317.1,3316.4,3.4918]
[1737927182182,3.77656,3317.1,3316.4,0.4765]
[1737927182385,3.01521,3316.6,3316.4,0.4765]
[1737927182587,6.03043,3316.6,3316.0,3.01565]
[1737927182742,3.01521,3316.6,3316.0,3.01565]
[1737927182948,3.01526,3316.5,3315.9,0.4765]
[1737927183165,3.01526,3316.5,3315.9,3.84146]
[1737927184011,3.01532,3316.4,3315.9,0.4765]
[1737927185162,3.01553,3316.2,3315.7,0.4765]
[1737927187697,0.7939,3316.3,3315.7,3.49245]
[1737927188110,3.01532,3316.4,3315.8,3.01583]
[1737927188417,6.80796,3316.6,3315.9,3.01574]
[1737927189029,3.79276,3316.6,3315.9,3.01574]
[1737927190278,3.01516,3316.6,3315.9,3.666547]
[1737927190504,3.01516,3316.6,3316.0,0.4765]
[1737927193418,3.01516,3316.6,3316.0,3.49218]
[1737927194578,3.01516,3316.6,3316.0,0.4765]
[1737927194913,3.01532,3316.4,3316.0,0.4765]
[1737927196287,0.7827,3316.3,3315.3,0.4765]
[1737927196628,3.01562,3316.1,3315.4,3.01615]
[1737927197399,3.01562,3316.1,3315.4,6.03231]
[1737927197606,3.01562,3316.1,3315.5,3.01612]
[1737927197933,3.04596799,3316.0,3315.4,3.01615]
[1737927198395,3.01575,3316.0,3315.4,3.01615]
[1737927198925,3.01575,3316.0,3315.3,0.4765]
[1737927199113,3.01575,3316.0,3315.0,0.4765]
[1737927199114,3.01618,3315.5,3315.0,0.4765]
[1737927199427,3.01605,3315.6,3315.0,3.49307]
[1737927199990,3.01598,3315.7,3315.0,0.4765]
[1737927200191,3.01614,3315.5,3315.0,0.4765]
[1737927205307,3.01614,3315.5,3313.4,0.2]
[1737927205308,3.83537,3315.3,3314.6,3.0]
[1737927205519,3.01643,3315.2,3314.6,3.01695]
[1737927206033,3.83537,3315.3,3314.6,3.01695]
[1737927209237,3.01643,3315.2,3314.6,3.01695]
[1737927209396,3.01652,3315.1,3314.5,0.4765]
[1737927209740,3.01683,3314.8,3314.5,0.4765]
[1737927209949,3.01692,3314.7,3314.2,0.4765]
[1737927210239,3.83578,3314.8,3314.2,3.49378]
[1737927210797,3.0167,3314.9,3314.3,3.0172]
[1737927212543,3.0167,3314.9,3314.4,0.02653365]
[1737927213146,3.01682,3314.8,3314.4,0.02653365]
[1737927213644,3.01682,3314.8,3314.2,3.49375]
[1737927213846,3.01682,3314.8,3314.5,0.02653365]
[1737927214146,3.01682,3314.8,3314.6,0.02653365]
[1737927214440,3.01682,3314.8,3314.2,3.49375]
[1737927214650,3.01682,3314.8,3314.7,0.02653365]
[1737927214804,3.01682,3314.8,3314.2,3.49375]
[1737927215323,3.01682,3314.8,3314.3,0.02653365]
[1737927215523,3.01682,3314.8,3314.2,3.49375]
[1737927215729,3.01682,3314.8,3314.3,0.02653365]
[1737927215899,3.01682,3314.8,3314.2,3.49375]
[1737927216099,3.01682,3314.8,3314.3,0.02653365]
[1737927216315,3.01682,3314.8,3314.2,0.4765]
[1737927216518,3.01682,3314.8,3314.3,0.02653365]
[1737927216717,3.01682,3314.8,3314.2,0.4765]
[1737927217010,3.01682,3314.8,3314.3,0.02653365]
[1737927217548,3.01682,3314.8,3314.4,0.02653365]
[1737927217720,3.01682,3314.8,3314.2,0.4765]
[1737927217922,3.01682,3314.8,3314.3,0.02653365]
[1737927218145,3.01682,3314.8,3314.2,3.49375]
[1737927218356,0.819,3315.3,3314.3,0.53320361]
[1737927218528,0.819,3315.3,3314.6,0.4765]
[1737927218729,3.01643,3315.2,3314.7,0.027122]
[1737927219154,0.819,3315.3,3314.7,0.027122]
[1737927219314,3.01667,3315.0,3314.7,0.027122]
[1737927224161,3.61998,3315.0,3314.7,0.027122]
[1737927224759,3.01686,3314.7,3314.2,0.4765]
[1737927224935,0.819,3314.9,3314.3,0.02711721]
[1737927225134,3.01704,3314.5,3314.0,3.49396]
[1737927225457,3.01704,3314.5,3314.1,0.57692585]
[1737927226253,3.01687,3314.7,3314.1,0.57692585]
[1737927227337,3.01696,3314.6,3314.1,0.57692585]
[1737927227652,3.01687,3314.7,3314.1,0.57692585]
[1737927227976,3.0171,3314.5,3314.1,0.57692585]
[1737927229031,3.400457,3314.7,3314.1,0.57692585]
[1737927229460,3.400457,3314.7,3314.1,3.59432585]
[1737927229662,3.01687,3314.7,3314.1,3.59432585]
[1737927230183,3.01846,3313.0,3312.4,0.84807689]
[1737927230382,6.03444,3314.3,3312.4,0.84807689]
[1737927230383,0.78721799,3312.9,3312.4,0.84807689]
[1737927230696,3.01884,3312.6,3312.4,0.84807689]
[1737927230979,3.01886,3312.5,3312.4,0.84807689]
[1737927232054,3.01886,3312.5,3312.4,0.003504]
[1737927233785,6.77586,3312.5,3312.4,0.003504]
[1737927237597,6.83100692,3312.5,3312.4,4e-06]
[1737927243399,7.03500692,3312.5,3312.4,4e-06]
[1737927243561,8.16075428,3312.5,3312.4,4e-06]
[1737927245211,3.01971,3311.6,3310.9,3.57024]
[1737927245504,3.01971,3311.6,3311.1,0.55]
[1737927250202,3.01951,3311.8,3311.1,3.57013]
[1737927250203,3.0196,3311.7,3311.1,3.57013]
[1737927250429,3.01969,3311.6,3311.1,0.55]
[1737927252571,3.6266318,3311.6,3311.1,0.55]
[1737927255012,3.01983,3311.5,3311.1,0.55]
[1737927259629,6.0393,3311.7,3311.1,0.55]
[1737927260432,3.01962,3311.7,3311.1,0.55]
[1737927260634,3.01971,3311.6,3311.1,0.55]
[1737927260789,3.623643,3311.6,3311.1,0.55]
[1737927261735,3.0194,3312.0,3311.4,0.55]
[1737927262038,3.0194,3312.0,3311.5,0.4765]
[1737927262539,3.01915,3312.2,3311.6,0.55]
[1737927262833,3.01915,3312.2,3311.7,3.01959]
[1737927263036,3.622961,3312.2,3311.7,3.01959]
[1737927267400,3.01896,3312.4,3311.8,0.55]
[1737927267590,3.01896,3312.4,3311.9,0.4765]
[1737927268039,3.0188,3312.6,3312.0,0.55]
[1737927268189,0.03021799,3312.5,3312.0,0.55]
[1737927268499,3.01903,3312.4,3312.0,0.55]
[1737927268698,0.03021799,3312.3,3312.0,0.55]
[1737927270595,3.0188,3312.6,3312.0,0.55]
[1737927270817,3.01887,3312.5,3312.0,0.55]
[1737927274647,3.04917799,3312.4,3312.0,0.55]
[1737927275918,3.01905,3312.3,3312.0,0.55]
[1737927280030,3.01949,3311.9,3311.6,0.4765]
[1737927280232,0.301949,3311.8,3311.1,6.0201]
[1737927280436,3.01923,3312.1,3311.2,0.4765]
[1737927280668,3.01967,3311.7,3311.3,0.55]
[1737927282170,3.01951,3311.8,3311.3,0.55]
[1737927282684,3.78961,3312.3,3311.5,0.55]
[1737927282685,3.01923,3312.1,3311.5,0.55]
[1737927282890,3.01923,3312.1,3311.5,3.56977]
[1737927283683,6.719429,3312.1,3311.5,3.56977]
[1737927284355,3.01933,3312.0,3311.5,3.56977]
[1737927287888,3.01933,3312.0,3311.5,0.55]
[1737927291339,3.01941,3311.9,3311.5,0.55]
[1737927291625,3.01933,3312.0,3311.5,0.55]
[1737927291800,0.7705,3312.3,3311.4,0.4765]
[1737927291801,3.01966,3311.7,3311.4,0.4765]
[1737927291996,3.01964,3311.7,3311.4,0.4765]
[1737927292229,3.04985799,3311.7,3311.4,0.4765]
[1737927292390,3.86525799,3311.7,3311.1,1.0265]
[1737927292925,3.86525799,3311.7,3311.1,4.04662]
[1737927293123,3.04985799,3311.7,3311.1,7.0667]
[1737927293440,3.01964,3311.7,3311.1,4.04658]
[1737927293930,0.03021799,3311.6,3311.1,4.04658]
[1737927300266,0.03021799,3311.6,3311.1,3.49658]
[1737927301162,3.81071,3311.5,3311.0,3.0]
[1737927301322,3.81071,3311.5,3311.1,0.55]
[1737927301847,0.7909,3311.8,3311.4,0.55]
[1737927302048,0.3700209,3311.9,3311.5,0.4765]
[1737927302423,0.33893409,3311.8,3311.4,0.55]
[1737927302624,3.01966,3311.7,3311.3,0.4765]
[1737927304152,3.01966,3311.7,3311.2,0.55]
[1737927304460,3.8106,3311.6,3311.2,0.55]
[1737927304654,0.7909,3311.6,3311.2,0.55]
[1737927305856,3.01966,3311.7,3311.2,3.57004]
[1737927306062,3.35844409,3311.8,3311.2,3.57004]
[1737927307171,3.01944,3311.9,3311.5,0.4765]
[1737927309286,3.01952,3311.8,3311.4,0.55]
[1737927310064,3.01944,3311.9,3311.1,3.02011]
[1737927310065,0.8141,3311.7,3311.1,3.49661]
[1737927310278,3.83371,3311.7,3311.1,3.49661]
[1737927310788,3.83371,3311.7,3311.2,0.55]
[1737927311596,3.83371,3311.7,3311.2,3.57004]
[1737927312374,0.8141,3312.3,3311.7,0.55]
[1737927312729,3.01938,3312.0,3311.4,3.01986]
[1737927313205,3.01796615,3312.0,3311.5,0.55]
[1737927314911,3.0192,3312.2,3311.5,3.56977]
[1737927315074,3.46348841,3312.2,3311.5,3.56977]
[1737927315279,6.48270841,3312.2,3311.5,3.56977]
[1737927315595,3.46348841,3312.2,3311.5,3.56977]
[1737927315782,3.01932,3312.0,3311.5,0.55]
[1737927317577,3.01942,3311.9,3311.5,0.55]
[1737927320375,3.01924,3312.1,3311.5,0.55]
[1737927320581,6.03853,3312.1,3311.5,0.55]
[1737927320908,3.01924,3312.1,3311.5,0.55]
[1737927321111,3.01932,3312.0,3311.5,0.55]
[1737927322013,3.01924,3312.1,3311.5,3.56976]
[1737927323491,3.01924,3312.1,3311.6,3.49617]
[1737927323696,3.01934,3312.0,3311.6,0.4765]
[1737927324101,3.01934,3312.0,3311.7,0.55]
[1737927325429,2.96934,3312.0,3311.7,0.55]
[1737927326726,3.01921,3312.2,3311.7,0.55]
[1737927327634,3.01929,3312.1,3311.7,0.55]
[1737927329199,3.01935,3312.0,3311.7,0.55]
[1737927329398,3.01929,3312.1,3311.7,0.55]
[1737927329399,3.01942,3311.9,3311.7,0.55]
[1737927329595,6.85227,3312.3,3311.7,0.55]
[1737927329791,3.01924,3312.1,3311.7,0.55]
[1737927332244,3.01924,3312.1,3311.9,0.55]
[1737927332451,3.01924,3312.1,3312.0,0.0771767]
[1737927336206,1.4117508,3312.1,3311.4,0.4765]
[1737927336401,3.01965,3311.7,3311.6,0.55]
[1737927336817,3.01965,3311.7,3311.6,0.62713354]
[1737927338429,3.01965,3311.7,3311.6,0.07713354]
[1737927338618,3.01983,3311.5,3311.1,0.4765]
[1737927338821,3.01989,3311.4,3311.2,0.07713354]
[1737927339639,3.01989,3311.4,3311.3,0.55]
[1737927339952,3.01989,3311.4,3310.9,0.55]
[1737927340258,3.02,3311.3,3310.9,0.55]
[1737927340551,3.02,3311.3,3311.1,0.55]
[1737927341058,3.02,3311.3,3311.2,0.07467848]
[1737927341248,3.02,3311.3,3310.9,0.55]
[1737927341453,3.02007,3311.2,3311.1,0.55]
[1737927341941,3.02007,3311.2,3311.1,0.62467848]
[1737927342746,3.02007,3311.2,3311.1,0.07467848]
[1737927343040,3.02007,3311.2,3310.9,0.55]
[1737927343336,3.02023,3311.1,3311.0,0.07467848]
[1737927344417,3.02026,3311.0,3310.6,0.4765]
[1737927344624,3.02026,3311.0,3310.8,0.55]
[1737927345009,3.02026,3311.0,3310.9,0.0750136]
[1737927345209,3.02026,3311.0,3310.7,0.55]
[1737927345536,3.02026,3311.0,3310.8,0.0750136]
[1737927347919,0.8049,3311.1,3310.8,0.0750136]
[1737927354451,3.82504,3311.1,3310.8,0.0750136]
[1737927354639,0.8049,3311.1,3310.8,0.0750136]
[1737927355626,3.02006,3311.2,3310.8,0.0750136]
[1737927357128,0.7672,3311.3,3310.8,0.0750136]
[1737927357362,3.01989,3311.4,3310.9,0.55]
[1737927357721,3.01989,3311.4,3311.0,0.07531521]
[1737927359368,3.78726,3311.2,3311.0,0.07531521]
[1737927360151,3.78726,3311.2,3311.1,0.0752769]
[1737927360758,0.7672,3311.2,3311.1,0.07532]
[1737927361052,0.7672,3311.2,3310.8,0.55]
[1737927361268,0.7672,3311.2,3310.9,0.07532]
[1737927361430,3.01996,3311.3,3310.9,0.07532]
[1737927363525,3.01996,3311.3,3310.9,0.07390614]
[1737927363866,0.378716,3311.2,3310.9,0.07390614]
[1737927364664,3.398776,3311.2,3310.9,0.07390614]
[1737927367568,0.378716,3311.2,3310.9,0.07390614]
[1737927368988,3.78715,3311.4,3311.0,3.57018]
[1737927368989,0.7672,3311.4,3311.0,3.57018]
[1737927369448,3.01981,3311.5,3311.1,0.07524893]
[1737927370048,3.01962,3311.7,3311.1,0.07524893]
[1737927370250,3.01962,3311.7,3311.1,3.09537893]
[1737927371576,3.01969,3311.6,3311.1,3.09537893]
[1737927372798,3.01981,3311.5,3311.1,0.07524893]
[1737927373099,3.623753,3311.5,3311.1,0.07524893]
[1737927375286,3.85315,3311.2,3311.1,0.07524893]
[1737927375486,0.8331,3311.2,3310.6,0.4765]
[1737927375676,3.02021,3311.1,3310.7,0.62527288]
[1737927376803,3.02024,3311.0,3310.7,0.62527288]
[1737927378872,3.85322,3311.2,3310.7,0.62527288]
[1737927379093,0.687322,3311.1,3310.7,0.62527288]
[1737927381336,3.707462,3311.1,3310.7,0.62527288]
[1737927384603,0.687322,3311.1,3310.7,0.62527288]
[1737927384918,3.02,3311.3,3310.7,0.62527288]
[1737927385711,3.02005,3311.2,3310.7,0.62527288]
[1737927387537,3.02016,3311.1,3310.7,0.62527288]
[1737927388425,3.01991,3311.4,3310.7,0.62527288]
[1737927388626,3.405321,3311.3,3310.7,0.62527288]
[1737927389923,0.385301,3311.3,3310.7,0.62527288]
[1737927390130,3.02007,3311.2,3310.7,0.62527288]
[1737927393329,3.02007,3311.2,3310.7,3.64577288]
[1737927393506,3.405291,3311.3,3310.7,3.64577288]
[1737927394832,0.8331,3311.5,3310.7,0.62527288]
[1737927395043,3.01947,3311.9,3311.4,0.4765]
[1737927395247,0.7987,3312.0,3311.4,3.49631]
[1737927395248,3.01933,3312.0,3311.4,3.49631]
[1737927395466,0.601933,3311.9,3311.4,3.49631]
[1737927395615,0.601933,3311.9,3311.5,0.07478302]
[1737927396646,3.621353,3311.9,3311.5,0.07478302]
[1737927398759,4.4284634,3312.2,3311.5,0.07478302]
[1737927399043,3.01917,3312.2,3311.6,0.55]
[1737927399246,3.01893,3312.5,3311.9,3.56937]
[1737927399666,6.03745,3312.7,3312.0,3.09374223]
[1737927400358,3.0187,3312.7,3312.2,0.4765]
[1737927400950,3.0187,3312.7,3312.3,0.07418938]
[1737927401253,3.46163786,3312.7,3312.3,0.07418938]
[1737927402345,3.0187,3312.7,3312.3,0.07418938]
[1737927404979,3.01884,3312.6,3312.3,0.07418938]
[1737927405791,0.03021799,3312.7,3312.3,0.07418938]
[1737927406086,3.01889,3312.5,3312.3,0.07418938]
[1737927406323,3.01895,3312.4,3312.3,0.07418938]
[1737927406612,3.622734,3312.4,3311.9,0.4765]
[1737927406752,3.01895,3312.4,3312.3,0.07409845]
[1737927407183,3.01895,3312.4,3311.9,0.4765]
[1737927407384,3.01895,3312.4,3312.3,0.07409845]
[1737927407588,3.01895,3312.4,3311.9,0.4765]
[1737927407759,3.01895,3312.4,3312.3,0.07409845]
[1737927407959,3.01895,3312.4,3312.3,0.4765]
[1737927408176,3.01873,3312.7,3312.3,0.55062717]
[1737927408486,3.62247,3312.7,3312.3,0.55062717]
[1737927408694,3.01867,3312.8,3312.3,0.55062717]
[1737927410662,3.01869,3312.7,3312.3,0.55062717]
[1737927410997,3.01869,3312.7,3312.4,0.55]
[1737927411291,3.01069054,3312.7,3312.4,0.55]
[1737927411482,3.01069054,3312.7,3312.5,0.07404582]
[1737927412492,3.01867,3312.8,3312.5,0.07404582]
[1737927412695,3.01877,3312.6,3312.5,0.07404582]
[1737927412895,3.77547,3312.6,3312.5,0.07404582]
[1737927413101,3.01932,3312.0,3311.9,0.4765]
[1737927413492,3.01932,3312.0,3311.9,0.55008156]
[1737927414061,3.01913,3312.3,3311.9,0.55008156]
[1737927414289,3.01915,3312.2,3311.9,0.55008156]
[1737927415521,3.01905,3312.3,3311.9,0.55008156]
[1737927417493,3.01867,3312.8,3312.0,0.55]
[1737927417694,3.01867,3312.8,3312.2,0.55]
[1737927418172,3.01867,3312.8,3312.3,0.07368205]
[1737927419073,3.01867,3312.8,3312.4,0.55]
[1737927419293,3.01867,3312.8,3312.5,0.4765]
[1737927419499,3.01867,3312.8,3312.5,0.55017248]
[1737927423040,6.03735,3312.8,3312.5,0.55017248]
[1737927423179,3.04888799,3312.8,3312.5,0.07367248]
[1737927423685,3.01877,3312.6,3312.5,0.62367248]
[1737927425541,3.01867,3312.8,3312.5,0.62367248]
[1737927425736,3.04888799,3312.8,3312.5,0.62367248]
[1737927425944,3.01869,3312.7,3312.5,0.62367248]
[1737927426445,3.04888799,3312.8,3312.5,0.62367248]
[1737927426446,6.06755799,3312.8,3312.5,0.61467248]
[1737927427842,3.01867,3312.8,3312.5,0.61467248]
[1737927429458,3.01869,3312.7,3312.5,0.61467248]
[1737927429958,3.77496,3313.2,3312.6,0.55]
[1737927430262,3.0181,3313.4,3312.8,0.55]
[1737927430786,3.01814,3313.3,3313.0,0.55]
[1737927430944,0.7532,3313.2,3312.2,3.01906]
[1737927431130,3.01861,3312.8,3312.3,0.5490624]
[1737927431483,3.5937449,3313.9,3312.3,0.0725624]
[1737927431484,0.7532,3312.7,3312.3,0.0725624]
[1737927431633,3.01895,3312.4,3312.3,0.0725624]
[1737927431955,3.01885,3312.6,3311.4,3.0]
[1737927432132,3.01929,3312.1,3311.6,0.55]
[1737927432451,3.01935,3312.0,3311.6,0.55]
[1737927432628,3.01935,3312.0,3311.8,0.55]
[1737927432829,3.01929,3312.1,3311.8,0.55]
[1737927433029,3.01929,3312.1,3311.6,0.55]
[1737927433525,3.01929,3312.1,3311.8,0.55]
[1737927433763,3.01933,3312.0,3311.8,0.55]
[1737927433934,3.01933,3312.0,3311.9,0.6225624]
[1737927435246,4.074463,3312.0,3311.9,0.0725624]
[1737927435476,4.10468099,3312.0,3311.9,0.0725624]
[1737927435765,3.01952,3311.8,3311.4,0.55]
[1737927435970,3.01952,3311.8,3311.5,0.0725624]
[1737927436272,3.01969,3311.6,3311.3,0.4765]
[1737927436454,3.01969,3311.6,3311.1,0.55]
[1737927439875,3.4300071,3311.8,3311.1,0.55]
[1737927440178,3.4300071,3311.8,3311.1,3.57013]
[1737927440338,3.01952,3311.8,3311.1,3.57013]
[1737927440544,3.0196,3311.7,3311.1,3.57013]
[1737927442036,3.04990799,3311.6,3311.1,3.57013]
[1737927442241,3.01969,3311.6,3311.1,0.55]
[1737927443076,3.04990799,3311.6,3311.1,0.55]
[1737927443371,3.01969,3311.6,3311.1,0.55]
[1737927443939,0.33218699,3311.5,3311.1,0.5]
[1737927444151,0.7532,3311.4,3310.8,3.49688]
[1737927444716,3.77314,3311.4,3310.8,3.49688]
[1737927445084,3.80335799,3311.4,3310.8,3.49688]
[1737927445300,3.77314,3311.4,3310.8,0.4765]
[1737927445594,3.02029,3311.0,3310.6,0.4765]
[1737927447609,3.02029,3311.0,3310.8,0.07151141]
[1737927453088,3.02029,3311.0,3310.8,0.54801141]
[1737927454776,3.02029,3311.0,3310.8,0.07151141]
[1737927459103,3.02012,3311.2,3310.8,0.07151141]
[1737927459430,3.43820309,3311.2,3310.8,0.07151141]
[1737927459934,3.02015,3311.1,3310.8,0.07151141]
[1737927460809,3.02024,3311.0,3310.8,0.07151141]
[1737927462941,3.43820309,3311.2,3310.8,0.07151141]
[1737927464136,3.02015,3311.1,3310.8,0.07151141]
[1737927465440,3.66598531,3311.1,3310.8,0.07151141]
[1737927473341,3.7731,3311.4,3310.9,0.55]
[1737927473505,3.01971,3311.6,3311.0,0.4765]
[1737927473710,3.01971,3311.6,3311.0,3.56861551]
[1737927474311,3.01978,3311.5,3311.0,3.56861551]
[1737927474844,3.01971,3311.6,3311.0,3.56861551]
[1737927475046,0.381181,3311.5,3311.0,3.56861551]
[1737927475246,3.400961,3311.5,3311.0,3.56861551]
[1737927475845,3.01978,3311.5,3311.1,0.55]
[1737927476150,0.7921,3311.7,3311.1,0.55]
[1737927476311,3.01965,3311.7,3311.2,0.0718938]
[1737927478445,3.01969,3311.6,3311.2,0.0718938]
[1737927480011,3.01969,3311.6,3311.3,0.4765]
[1737927480422,3.01969,3311.6,3311.4,0.07173127]
[1737927480622,3.01969,3311.6,3311.3,0.4765]
[1737927480844,3.01953,3311.8,3311.4,0.62173127]
[1737927481743,3.81187,3311.6,3311.4,0.07173127]
[1737927481948,3.04998799,3311.5,3311.4,0.07173127]
[1737927482112,0.03021799,3311.5,3310.8,0.4765]
[1737927482442,3.02009,3311.2,3310.9,0.07170259]
[1737927482743,3.02009,3311.2,3311.0,0.55]
[1737927483049,3.02009,3311.2,3311.1,0.07171215]
[1737927483548,3.02009,3311.2,3310.9,0.55]
[1737927484049,3.02009,3311.2,3311.0,0.07182688]
[1737927484847,3.02014,3311.1,3310.8,0.4765]
[1737927485228,3.02014,3311.1,3310.9,0.07184122]
[1737927485813,3.624163,3311.1,3310.8,0.55]
[1737927486031,3.02024,3311.0,3310.9,0.07184122]
[1737927486550,3.02024,3311.0,3310.4,0.4765]
[1737927486747,3.02024,3311.0,3310.9,0.07184122]
[1737927486949,3.02024,3311.0,3310.4,0.4765]
[1737927487140,3.02024,3311.0,3310.9,0.07184122]
[1737927487339,3.02024,3311.0,3310.4,0.4765]
[1737927487540,3.02024,3311.0,3310.9,0.07184122]
[1737927487745,3.7627793,3311.0,3310.4,0.4765]